Cogmind - Beta 13 @@@ ROGUE MODE // 2024.05.01 @ 13:07:57 // Winter2019/RPGLIKE Player: abcdefg Result: Core destroyed Performance ------------- Evolutions (0) 0 Regions Visited (1) 200 Robots Destroyed (21) 105 Value Destroyed (545) 545 Prototype IDs (0) 0 Alien Tech Used (0) 0 Bonus (0) 0 TOTAL SCORE: 850 Bonus ------- None Cogmind --------- Core Integrity 0/600 Matter 247/300 Energy 103/160 System Corruption 2% Temperature Critical (763) Movement Treading (160) Location -10/Materials Parts ------- > --- POWER (1) -------- Light Nuclear Core > --- PROPULSION (2) --- Light Treads Light Treads > --- UTILITY (1) ------ Hacking Suite > --- WEAPON (4) ------- Particle Cannon Particle Cannon Particle Cannon Particle Cannon > --- INVENTORY (1) ---- (None) Peak State ------------ > --- POWER ------------ Light Nuclear Core > --- PROPULSION ------- Light Treads Light Treads > --- UTILITY ---------- Hacking Suite > --- WEAPON ----------- Particle Cannon Particle Cannon Particle Cannon Particle Cannon > --- INVENTORY -------- (None) [Rating: 16] Favorites ----------- Power Light Nuclear Core Engine Ion Engine Power Core Light Nuclear Core Propulsion Light Treads Treads Light Treads Utility Hacking Suite Hackware Hacking Suite Weapon Light Assault Rifle Energy Gun EM Pulse Gun Energy Cannon Particle Cannon Ballistic Gun Light Assault Rifle Build | -11 -10 ------- Run | Yrd Mat Slots Evolved 4 | 3 1 Power . | . . Propulsion 1 | 1 . Utility . | . . Weapon 3 | 2 1 Parts Attached 13 | 6 7 Power 2 | 1 1 Engine 1 | 1 . Core 1 | . 1 Reactor . | . . Propulsion 2 | 2 . Treads 2 | 2 . Leg . | . . Wheel . | . . Hover . | . . Flight . | . . Utility 1 | . 1 Device . | . . Storage . | . . Processor . | . . Hackware 1 | . 1 Protection . | . . Artifact . | . . Weapon 8 | 3 5 Energy Gun 1 | 1 . Energy Cannon 4 | . 4 Ballistic Gun 3 | 2 1 Ballistic Cannon . | . . Launcher . | . . Special Weapon . | . . Impact Weapon . | . . Slashing Weapon . | . . Piercing Weapon . | . . Special Melee Weapon . | . . Unidentified Prototypes . | . . Parts Lost . | . . Power . | . . Propulsion . | . . Utility . | . . Weapon . | . . Highest Loss Streak . | . . To Critical Strikes . | . . Average Slot Usage (%) 93 | . 93 Engine 1 | . 1 Core 12 | . 12 Treads 27 | . 27 Hackware 7 | . 7 Energy Gun 6 | . 6 Energy Cannon 1 | . 1 Ballistic Gun 34 | . 34 Naked Turns . | . . Heaviest Build 21 | 9 21 Greatest Support 40 | 40 40 Greatest Overweight (x) . | . . Average Overweight (x) . | . . Largest Inventory Capacity 1 | 1 1 Average Capacity . | . 1 Most Carried 1 | 1 1 Average Carried . | . . Final Capacity 1 | 1 1 Final Carried . | . . Class Distribution -------------------- 100% | Gunner Dominant Class ---------------- Gunner | -10/Materials Resources | -11 -10 ----------- Run | Yrd Mat Matter Collected 434 | 260 174 Remotely . | . . Salvage Created 628 | . 628 Parts 47 | . 47 Haulers Intercepted 1 | . 1 Recyclers Shooed 1 | . 1 Parts Field Recycled . | . . Retrieved Matter . | . . Parts Self-Destructed . | . . Prevented . | . . Kills | -11 -10 ------- Run | Yrd Mat Combat Hostiles Destroyed 15 | . 15 Guns 11 | . 11 Cannons 2 | . 2 AOE 1 | . 1 Classes Destroyed 6 | . 6 Builder 1 | . 1 Hauler 1 | . 1 Operator 1 | . 1 Watcher 3 | . 3 Swarmer 3 | . 3 Grunt 12 | . 12 Best Kill Streak 7 | . 7 Combat Bots Only 5 | . 5 Max Kills in Single Turn 2 | . 2 Gunslinging 1 | . 1 Exploded 1 | . 1 Melee . | . . Uniques/NPCs Destroyed . | . . Combat | -11 -10 -------- Run | Yrd Mat Hostile Shots Fired 60 | . 60 Missed 16 | . 16 Damage Taken 943 | . 943 Core 837 | . 837 Absorbed by Shields . | . . Redirected to Core 343 | . 343 Core Remaining (%) 100 | 100 . Volleys Fired 54 | . 54 Largest 4 | . 4 Hottest 272 | . 272 Shots Fired 165 | . 165 Gun 153 | . 153 Cannon 12 | . 12 Launcher . | . . Special . | . . Kinetic 125 | . 125 Thermal 12 | . 12 Explosive . | . . Electromagnetic 28 | . 28 Robot Hit Streak 5 | . 5 Robot Miss Streak 6 | . 6 Penetration Max . | . . Secondary Targets 5 | . 5 Max Gunslinging Chain 1 | . 1 Shots Hit Robots 82 | . 82 Core Hits 39 | . 39 Critical Kills 1 | . 1 Critical Parts Destroyed 1 | . 1 Critical Strikes 3 | . 3 Meltdown 1 | . 1 Destroy 1 | . 1 Corrupt 1 | . 1 Melee Attacks . | . . Impact . | . . Slashing . | . . Piercing . | . . Sneak Attacks . | . . Combat Hostiles . | . . Follow-up Attacks . | . . Damage Inflicted 1018 | . 1018 Guns 815 | . 815 Cannons 124 | . 124 Explosions 70 | . 70 Melee . | . . Ramming 9 | . 9 Kinetic 569 | . 569 Thermal 194 | . 194 Explosive . | . . Electromagnetic 246 | . 246 Impact . | . . Slashing . | . . Piercing . | . . Highest Corruption 2 | . 2 Average Corruption 1 | . 1 Corruption Purged . | . . Corruption Blocked . | . . Effects 8 | . 8 Message Errors 2 | . 2 Heat Flow Errors 1 | . 1 Data Loss (minor) 4 | . 4 Data Loss (major) 1 | . 1 Overload Shots . | . . Overflow Damage . | . . Projectiles . | . . Explosions . | . . Melee . | . . Knockbacks . | . . Impact . | . . Kinetic . | . . Secondary . | . . Self-Inflicted Damage 28 | . 28 Shots 1 | . 1 Rammed 4 | . 4 Targets Rammed 4 | . 4 Kicked . | . . Crushed . | . . Highest Temperature 786 | . 786 Average Temperature 100 | . 100 Received Heat Transfer 231 | . 231 Effects 6 | . 6 Shutdowns 1 | . 1 Damage (minor) 1 | . 1 Damage (core) 4 | . 4 Siege Activations . | . . Robots Corrupted . | . . Combat Hostiles . | . . Parts Fried 1 | . 1 Impact Corruptions . | . . Robots Melted 1 | . 1 Combat Hostiles 1 | . 1 Parts Melted . | . . Heat Transferred 322 | . 322 Parts Sabotaged . | . . Parts Stolen . | . . Parts Stripped . | . . Power Chain Reactions 1 | . 1 Alert | -11 -10 ------- Run | Yrd Mat Peak Influence 401 | . 401 Initial . | . . Average 215 | . 237 Maximum Alert Level 2 | . 2 Low Security (%) 29 | 100 21 Level 1 70 | . 77 Level 2 . | . . Level 3 . | . . Level 4 . | . . Level 5 . | . . High Security . | . . Max Security . | . . Squads Dispatched 3 | . 3 Investigation 2 | . 2 Extermination . | . . Reinforcement 1 | . 1 Assault . | . . Garrison . | . . Intercept . | . . Searches Triggered . | . . Construction Impeded . | . . Haulers Reinforced . | . . Active Scanning Responses . | . . Cargo Convoy Interrupts . | . . Stealth | -11 -10 --------- Run | Yrd Mat Distress Signals 2 | . 2 Communications Jammed . | . . Distress Signals . | . . Times Spotted 25 | . 25 Peak Tracking Total 7 | . 7 Tactical Retreats 1 | . 1 Traps | -11 -10 ------- Run | Yrd Mat Traps Triggered 3 | . 3 Indirectly . | . . Trap Hack Attempts . | . . Triggered . | . . Disarmed . | . . Reprogrammed . | . . Reused . | . . Traps Extracted . | . . Installed . | . . Triggered . | . . Machines | -11 -10 ---------- Run | Yrd Mat Machines Disabled 1 | . 1 Max in Single Turn 1 | . 1 Machines Repaired . | . . Machines Dismantled . | . . Machines Sabotaged . | . . Overloaded Fab Kills . | . . Hacking | -11 -10 --------- Run | Yrd Mat Machines Accessed 2 | . 2 Terminals 2 | . 2 Fabricators . | . . Repair Stations . | . . Recycling Units . | . . Scanalyzers . | . . Garrison Access . | . . Total Hacks 6 | . 6 Successful 3 | . 3 Failed 3 | . 3 Catastrophic 2 | . 2 Database Lockouts . | . . Manual 1 | . 1 Terminals 6 | . 6 Fabricators . | . . Repair Stations . | . . Recycling Units . | . . Scanalyzers . | . . Garrison Access . | . . Terminal Hacks 3 | . 3 Alert Level 2 | . 2 Hauler Manifests 1 | . 1 Fabricator Hacks . | . . Repair Station Hacks . | . . Recycling Unit Hacks . | . . Scanalyzer . | . . Garrison Access Hacks . | . . Unauthorized Hacks . | . . Terminals . | . . Fabricators . | . . Repair Stations . | . . Recycling Units . | . . Scanalyzers . | . . Garrison Access . | . . Data Cores Recovered . | . . Used . | . . Hacking Detections 2 | . 2 Full Trace Events 2 | . 2 Feedback Events . | . . Feedback Blocked . | . . Robot Schematics Acquired . | . . Robots Built . | . . Authchips . | . . Time . | . . Total Robot Build Rating . | . . Part Schematics Acquired . | . . Parts Built . | . . Authchips . | . . Time . | . . Total Part Build Rating . | . . Parts Repaired . | . . Time . | . . Parts Recycled . | . . Recycled Matter . | . . Retrieved Matter . | . . Retrieved Components . | . . Parts Scanalyzed . | . . Part Schematics Acquired . | . . Parts Damaged . | . . Bothacking | -11 -10 ------------ Run | Yrd Mat Used RIF Installer . | . . Robots Hacked . | . . Non-combat . | . . Combat . | . . Robot Hacks Applied . | . . Relay Couplers Released . | . . Fabnet Peak Effective % . | . . Robots Rewired . | . . Allies Hacked . | . . Hacks Repelled . | . . Allies | -11 -10 -------- Run | Yrd Mat Total Allies . | . . Largest Group . | . . Highest-Rated Group . | . . Highest-Rated Ally . | . . Total Orders . | . . Ally Attacks . | . . Total Damage . | . . Kills . | . . Allies Corrupted . | . . Allies Melted . | . . Intel | -11 -10 ------- Run | Yrd Mat Robot Analysis Total . | . . Derelict Logs Recovered . | . . Drone Launches . | . . Drone Recoveries . | . . Exploration | -11 -10 ------------- Run | Yrd Mat Turns Passed 840 | 80 760 Spaces Moved 401 | 45 356 Core 3 | 3 . Treads 398 | 42 356 Legs . | . . Wheels . | . . Hover . | . . Flight . | . . Fastest Speed 50 | 50 160 Average Speed 159 | 152 160 Slowest Speed 160 | 160 160 Overloaded Moves . | . . Propulsion Burnouts . | . . Robots Hopped . | . . Cave-ins Triggered . | . . Exploration Rate (%) 27 | 3 52 Regions Visited 1 Branch Regions . Pre-discovered Areas . | . . Known Exits Taken . | . . Unknown Exits Taken 1 | 1 . Scrap Searched . | . . Spaces Dug . | . . Terrain Destroyed 4 | . 4 Melee . | . . Projectile . | . . AOE 4 | . 4 Terrain Rammed . | . . Walls Destroyed . | . . Machines Disabled . | . . Actions | -11 -10 --------- Run | Yrd Mat Total 503 | 58 445 Wait 2 | . 2 Move 400 | 44 356 Hop . | . . Pick Up 14 | 7 7 Fast Attach . | . . Attach 11 | 6 5 Detach . | . . Swap 2 | . 2 Drop 6 | 1 5 Fire 54 | . 54 Melee . | . . Ram . | . . Kick . | . . Crush 4 | . 4 Escape Stasis . | . . Rewire . | . . Trap . | . . Miscellaneous 10 | . 10 Route ------- -11/Scrapyard -10/Materials (discovered 1 exit: [*Mat]) History --------- Turn | Location | Event 3 | -11/Scrapyard | Upgraded with Propulsion slot (x1) 3 | -11/Scrapyard | Upgraded with Weapon slot (x2) 12 | -11/Scrapyard | Discovered new exit (range 13) 81 | -11/Scrapyard | Entered Materials 317 | -10/Materials | Build established: Gunner 668 | -10/Materials | Reached level 2 786 | -10/Materials | Discovered new exit (range 14) 808 | -10/Materials | Upgraded with Weapon slot (x1) 838 | -10/Materials | Core integrity fell below 50% 840 | -10/Materials | Core integrity fell below 20% 842 | -10/Materials | Core destroyed Last Messages --------------- 00831_ Connecting with Terminal... >>Manifests Retrieving manifest data... Found 1 hauler: A-02 Transporter 4x Lgt. Ion Engine 1x Hover Unit 00831_ ALERT: Suspicious activity at Terminal M001. Dispatching Investigation squad. 00831_ G-34 Mercenary suffers critical hit (Meltdown). 00831_ R-06 Scavenger collects Assault Rifle. 00834_ G-34 Mercenary destroyed. 00837_ Overheating: Core damaged (-114). 00838_ G-34 Mercenary destroyed. 00839_ Power failure, Lgt. Nuclear Core shutdown. 00839_ Overheating: Particle Cannon damaged (-34). 00840_ Overheating: Core damaged (-102). Map ----- +----------------------------------------------------+ | | | | | | | | | | | | | | | | | | | | | | | | | | | | | ?????????????????????????????????????????????????? | | ?????????????????????????????????????????????????? | | ?????????????????????????????????????????????????? | | ?????????????????????????????????????????????????? | | ?????????????????????????????????????????????????? | | ???????????????????#########?????????????????????? | | ???????????????????#!! =%= ######????????????????? | | ???????????????????#!!!=%<%##"""#????????????????? | | ???????????????????#!! =[% ##"T"#######+?????????? | | ???????????????????#!! [ ?????????? | | ???????????????????# ??????????? | | ???????????????????# [[ @T """ """ "???????? | | ???????????????????##### """ """ ""??????? | | ???????????????????????# """ """ """ ????? | | ???????????????????????# ????? | | ???????????????????????# ???? | | ?????????????????????### ???? | | ????????????????????# # ???? | | ????????????????????# ???? | | ????????????????????## #r ???? | | ?????????????????????### ###+######+#######????? | | ???????????????????????# # #??????????????? | | ???????????????????????# # """#??????????????? | | ???????????????????????# # """#??????????????? | | ???????????????????????# + ! """#??????????????? | | ???????????????????????+ # #??????????????? | | ???????????????????????# #! ! =#??????????????? | | ???????????????????????## #########??????????????? | | ????????????????????????#/#########??????????????? | | ????????????????????????# !! #??????????????? | | ????????????????????????#!= #??????????????? | | ????????????????????????# #??????????????? | | ????????????????????????# #??????????????? | | ????????????????????????# #??????????????? | | ????????????????????????# #???##########?? | | ????????????????????????# #???# #?? | +----------------------------------------------------+ Best States ------------- Heat Dissipation 25 Energy Generation 14 Energy Capacity 250 Matter Stores 300 Matter Capacity 300 Sight Range 16 Terrain Scan Density 10 Evasion (%) 40 Recoil Reduction 2 Offensive Hacking 10 Item Schematics ----------------- None Robot Schematics ------------------ None Fabricated ------------ Nothing Alien Tech Used ----------------- None Achievements -------------- None Challenges ------------ None RPGLIKE | -11 -10 --------- Run | Yrd Mat Levels Raised 1 | . 1 XP Earned 5015 | 3000 2015 XP Spent 3150 | 2050 1100 Upgrades 5 | 4 1 Propulsion Slot 1 | 1 . Weapon Slot 3 | 2 1 Inventory Capacity 1 | 1 . Protomatter Created 199 | . 199 Integrity Restored 231 | . 231 Core 231 | . 231 Protomatter Decayed 33 | . 33 Game ------ Seed FissionSpikedAccelerator Manual? 0 Play Time 00:06:38 Cumulative 16.9 hours Start 2024.05.01 @ 13:02:14 End 2024.05.01 @ 13:07:57 Sessions 1 Manual Loads 0 Difficulty Rogue Special Mode Winter2019/RPGLIKE Game No. 25 Rogue 25 Adventurer 0 Explorer 0 Win Type - Total 0 Types 0/0/0/0/0/0/0/0/0 Lore% 22 Gallery% 23 Achievement% 18 Wizard Run 0 Options --------- Layout 1 ASCII 0 Keyboard 0 Movement Mouse Keybinds 0 Fullscreen 1 Font 24/Smallcaps Map View 50x35 Zoom Use 0% Tactical HUD 1 Map Filters NONE Filters NONE Steam 1 RUN: 4d3b9562-20f0-4d78-b7b5-3758b3087361